bitfinex/quotes_BTCUSD_20220405
["timestamp","ask_amount","ask_price","bid_price","bid_amount"]
[1649141428567,0.65612536,46663.0,46662.0,0.01010836]
[1649141428664,0.41020323,46663.0,46662.0,0.01010836]
[1649141428965,0.58542038,46663.0,46662.0,0.01010836]
[1649141429172,2.02630483,46663.0,46662.0,0.01010836]
[1649141429319,1.91488688,46663.0,46662.0,0.01010836]
[1649141429920,2.15897082,46663.0,46662.0,0.01010836]
[1649141432424,2.15897082,46663.0,46662.0,0.00999401]
[1649141433176,1.85108768,46663.0,46662.0,0.00999401]
[1649141433878,2.15897082,46663.0,46662.0,0.00999401]
[1649141433978,2.14091082,46663.0,46662.0,0.00999401]
[1649141435092,1.83302768,46663.0,46662.0,0.00999401]
[1649141435292,1.82620356,46663.0,46662.0,0.00999401]
[1649141435493,2.1340867,46663.0,46662.0,0.00999401]
[1649141435794,2.16719236,46663.0,46662.0,0.00999401]
[1649141436296,1.89575845,46663.0,46662.0,0.00999401]
[1649141436897,2.16711364,46663.0,46662.0,0.00999401]
[1649141437498,1.89590778,46663.0,46662.0,0.00999401]
[1649141437596,1.89260275,46663.0,46662.0,0.00999401]
[1649141438034,2.16380609,46663.0,46662.0,0.00999401]
[1649141439187,1.85600419,46663.0,46662.0,0.00999401]
[1649141441344,1.90600419,46663.0,46662.0,0.00999401]
[1649141441920,2.21380609,46663.0,46662.0,0.00999401]
[1649141442119,2.16380609,46663.0,46662.0,0.00999401]
[1649141442571,0.72292164,46663.0,46662.0,0.00999401]
[1649141442671,0.40202264,46663.0,46662.0,0.00999401]
[1649141442772,0.09422074,46663.0,46662.0,0.00999401]
[1649141442870,0.35390974,46663.0,46662.0,0.00999401]
[1649141443669,0.03301074,46663.0,46662.0,0.00999401]
[1649141443821,0.02649727,46663.0,46662.0,0.01389294]
[1649141444722,0.34739627,46663.0,46662.0,0.01389294]
[1649141445022,0.02649727,46663.0,46662.0,0.01389294]
[1649141445222,0.34739627,46663.0,46662.0,0.01389294]
[1649141445589,0.34739627,46663.0,46662.0,0.01142583]
[1649141446088,0.64739627,46663.0,46662.0,0.01142583]
[1649141446440,0.32649727,46663.0,46662.0,0.01142583]
[1649141448602,0.02649727,46663.0,46662.0,0.01142583]
[1649141448798,0.32649727,46663.0,46662.0,0.01142583]
[1649141448896,0.3,46663.0,46662.0,0.01142583]
[1649141448997,0.620899,46663.0,46662.0,0.01142583]
[1649141449735,0.320899,46663.0,46662.0,0.01142583]
[1649141450886,0.60423701,46663.0,46662.0,0.01142583]
[1649141452493,0.90423701,46663.0,46662.0,0.01142583]
[1649141454093,1.920899,46662.0,46653.0,0.25316026]
[1649141454197,1.94740627,46662.0,46661.0,0.05]
[1649141454296,1.94740627,46662.0,46653.0,0.25316026]
[1649141454297,0.0428,46661.0,46654.0,0.05]
[1649141454396,0.22905,46658.0,46654.0,0.05]
[1649141454493,0.620899,46657.0,46654.0,0.05]
[1649141454592,0.663699,46657.0,46654.0,0.05]
[1649141455196,1.00633486,46657.0,46654.0,0.05]
[1649141455700,1.00633486,46657.0,46653.0,0.15]
[1649141455797,1.10633486,46657.0,46653.0,0.15]
[1649141455906,0.2,46655.0,46653.0,0.15]
[1649141456000,0.620899,46654.0,46653.0,0.15]
[1649141456776,0.28459061,46649.0,46647.0,0.001]
[1649141456867,0.39640492,46649.0,46647.0,0.001]
[1649141457013,0.24717488,46648.0,46647.0,0.001]
[1649141457110,0.36990061,46649.0,46648.0,0.22349017]
[1649141457211,0.08531,46649.0,46648.0,0.22349017]
[1649141457314,0.38934364,46649.0,46648.0,0.27349017]
[1649141458270,0.68934364,46649.0,46648.0,0.27349017]
[1649141458465,0.38934364,46649.0,46648.0,0.27349017]
[1649141459065,0.38934364,46649.0,46648.0,0.37339017]
[1649141463951,0.08531,46649.0,46648.0,0.37339017]
[1649141464101,0.2,46650.0,46648.0,0.37339017]
[1649141464246,0.01072,46656.0,46648.0,0.37339017]
[1649141464344,0.320899,46656.0,46648.0,0.37339017]
[1649141464444,0.320899,46656.0,46648.0,0.37632958]
[1649141464545,0.320899,46655.0,46650.0,0.1071925]
[1649141464699,0.320899,46655.0,46651.0,0.05]
[1649141464797,0.2,46653.0,46651.0,0.05]
[1649141464895,0.50747117,46653.0,46651.0,0.05]
[1649141465095,0.320899,46652.0,46651.0,0.05]
[1649141465195,0.50747117,46653.0,46651.0,0.05]
[1649141465594,0.320899,46652.0,46651.0,0.05]
[1649141465696,0.50747117,46653.0,46651.0,0.05]
[1649141465795,0.320899,46652.0,46651.0,0.05]
[1649141465996,0.50747117,46653.0,46651.0,0.05]
[1649141466098,0.320899,46652.0,46651.0,0.05]
[1649141466196,0.50747117,46653.0,46651.0,0.05]
[1649141466747,0.320899,46652.0,46651.0,0.05]
[1649141466846,0.50747117,46653.0,46651.0,0.05]
[1649141468686,0.50747117,46653.0,46651.0,0.05313222]
[1649141471242,0.50747117,46653.0,46651.0,0.15303222]
[1649141471640,0.320899,46652.0,46651.0,0.15303222]
[1649141471746,0.50747117,46653.0,46651.0,0.15303222]
[1649141473557,0.30747117,46653.0,46651.0,0.15303222]
[1649141473751,0.50747117,46653.0,46651.0,0.15303222]
[1649141473853,0.320899,46652.0,46651.0,0.05313222]
[1649141474054,0.620899,46652.0,46651.0,0.05313222]
[1649141474357,0.320899,46652.0,46651.0,0.05313222]
[1649141475257,0.50747117,46653.0,46651.0,0.05313222]
[1649141475744,0.320899,46652.0,46651.0,0.05313222]
[1649141475944,0.50747117,46653.0,46651.0,0.05313222]
[1649141476248,0.320899,46652.0,46651.0,0.05313222]
[1649141477596,0.50747117,46653.0,46651.0,0.05313222]
[1649141477697,0.320899,46652.0,46651.0,0.05313222]
[1649141477947,0.50747117,46653.0,46651.0,0.05313222]
[1649141478301,0.320899,46652.0,46651.0,0.05313222]
[1649141478401,0.50747117,46653.0,46651.0,0.05313222]
[1649141478602,0.320899,46652.0,46651.0,0.05313222]
[1649141479895,0.620899,46652.0,46651.0,0.05313222]
[1649141480297,0.320899,46652.0,46651.0,0.05313222]
[1649141481949,0.50747117,46653.0,46651.0,0.05313222]
[1649141482149,0.320899,46652.0,46651.0,0.05313222]
[1649141482249,0.50747117,46653.0,46651.0,0.05313222]
[1649141482550,0.320899,46652.0,46651.0,0.05313222]
[1649141483247,0.50747117,46653.0,46651.0,0.05313222]
[1649141483348,0.320899,46652.0,46651.0,0.05313222]
[1649141483854,0.50747117,46653.0,46651.0,0.05313222]
[1649141483951,0.320899,46652.0,46651.0,0.05313222]
[1649141484352,0.50747117,46653.0,46651.0,0.05313222]
[1649141484803,0.320899,46652.0,46651.0,0.05313222]
[1649141485202,0.50747117,46653.0,46651.0,0.05313222]
[1649141485752,0.320899,46652.0,46651.0,0.05313222]
[1649141485853,0.50747117,46653.0,46651.0,0.05313222]
[1649141485955,0.320899,46652.0,46651.0,0.05313222]
[1649141486155,0.50747117,46653.0,46651.0,0.05313222]
[1649141486360,0.320899,46652.0,46651.0,0.05313222]
[1649141488193,0.50747117,46653.0,46651.0,0.05313222]
[1649141488292,0.320899,46652.0,46651.0,0.05313222]
[1649141488391,0.50747117,46653.0,46651.0,0.05313222]
[1649141488491,0.320899,46652.0,46651.0,0.05313222]
[1649141488593,0.50747117,46653.0,46651.0,0.05313222]
[1649141488691,0.320899,46652.0,46651.0,0.05313222]
[1649141488991,0.50747117,46653.0,46651.0,0.05313222]
[1649141489644,0.320899,46652.0,46651.0,0.05313222]
[1649141490738,0.50747117,46653.0,46651.0,0.05313222]
[1649141490837,0.320899,46652.0,46651.0,0.05313222]
[1649141490936,0.50747117,46653.0,46651.0,0.05313222]
[1649141491038,0.320899,46652.0,46651.0,0.05313222]
[1649141493390,0.50747117,46653.0,46651.0,0.05313222]
[1649141493491,0.320899,46652.0,46651.0,0.05313222]
[1649141493690,0.50747117,46653.0,46651.0,0.05313222]
[1649141493790,0.320899,46652.0,46651.0,0.05313222]
[1649141495167,0.50747117,46653.0,46651.0,0.05313222]
[1649141496070,0.320899,46652.0,46651.0,0.05313222]
[1649141496270,0.50747117,46653.0,46651.0,0.05313222]
[1649141496870,0.320899,46652.0,46651.0,0.05313222]
[1649141496970,0.50747117,46653.0,46651.0,0.05313222]
[1649141497071,0.320899,46652.0,46651.0,0.05313222]
[1649141498902,0.50747117,46653.0,46651.0,0.05313222]
[1649141499001,0.320899,46652.0,46651.0,0.05313222]
[1649141502251,0.320899,46652.0,46651.0,0.15303222]
[1649141503153,0.50747117,46653.0,46651.0,0.15303222]
[1649141503252,0.320899,46652.0,46651.0,0.15303222]
[1649141505354,0.320899,46652.0,46651.0,0.15510699]
[1649141507000,0.50747117,46653.0,46651.0,0.15510699]
[1649141507199,0.320899,46652.0,46651.0,0.15510699]
[1649141514145,0.316303,46652.0,46651.0,0.15510699]
[1649141521238,0.316303,46652.0,46651.0,0.10510699]
[1649141522290,0.359103,46652.0,46651.0,0.10510699]
[1649141522391,0.359103,46652.0,46651.0,0.00520699]
[1649141523991,0.359103,46652.0,46651.0,0.00400341]
[1649141525564,0.459103,46652.0,46651.0,0.00400341]
[1649141525655,1.2,46651.0,46649.0,0.00021526]
[1649141525755,0.320899,46650.0,46649.0,0.00021526]
[1649141525907,0.320899,46650.0,46648.0,0.27349017]
[1649141525908,0.463699,46650.0,46648.0,0.27349017]
[1649141526007,0.2,46649.0,46648.0,0.27349017]
[1649141526105,0.520911,46649.0,46648.0,0.27349017]
[1649141526308,0.563711,46649.0,46648.0,0.27349017]
[1649141528298,0.563711,46649.0,46648.0,0.27568549]
[1649141529098,0.563711,46649.0,46648.0,0.22568549]
[1649141530202,0.520911,46649.0,46648.0,0.22568549]
[1649141536160,1.120911,46649.0,46648.0,0.22568549]
[1649141538716,1.163711,46649.0,46648.0,0.22568549]
[1649141539950,1.163711,46649.0,46648.0,0.21138549]
[1649141542458,1.163711,46649.0,46646.0,0.001617]
[1649141542561,0.320911,46648.0,46646.0,0.001617]
[1649141542664,0.29548267,46647.0,46646.0,0.001]
[1649141542762,0.37456448,46647.0,46646.0,0.001]
[1649141542861,0.37456448,46647.0,46645.0,0.000397]
[1649141543038,0.55,46644.0,46620.0,0.41787841]
[1649141543129,0.25,46626.0,46608.0,0.35347774]
[1649141543234,0.25,46626.0,46604.0,0.01119317]
[1649141543235,0.7347,46621.0,46610.0,0.00089288]
[1649141543326,0.7347,46621.0,46591.0,0.01]
[1649141543327,3.32897306,46601.0,46591.0,0.01]
[1649141543429,3.32897306,46601.0,46597.0,3.27317185]
[1649141543526,0.2,46599.0,46597.0,0.87587987]
[1649141543635,0.320911,46598.0,46597.0,0.55496887]
[1649141543730,0.315911,46598.0,46597.0,0.244246]
[1649141543843,1.314911,46598.0,46591.0,0.01]
[1649141543931,0.2,46592.0,46586.0,0.22058896]
[1649141544026,0.2,46592.0,46582.0,0.12215117]
[1649141544027,0.320919,46591.0,46582.0,0.12215117]
[1649141544137,0.2,46589.0,46576.0,0.00689276]
[1649141544226,0.4,46584.0,46576.0,0.00689276]
[1649141544326,0.720934,46584.0,46576.0,0.00689276]
[1649141544432,0.763734,46584.0,46576.0,0.00689276]
[1649141544527,1.763734,46584.0,46576.0,0.00689276]
[1649141544725,1.863734,46584.0,46576.0,0.00689276]
[1649141544927,1.1928,46584.0,46576.0,0.00689276]
[1649141545028,1.149,46584.0,46576.0,0.00689276]
[1649141545130,1.149,46584.0,46577.0,0.41246473]
[1649141545232,1.049,46584.0,46577.0,0.41246473]
[1649141545330,0.23386234,46593.0,46585.0,2.05]
[1649141545432,0.54034881,46592.0,46577.0,0.41246473]
[1649141545529,0.17553185,46590.0,46584.0,0.320934]
[1649141545630,0.30718074,46598.0,46584.0,0.59148786]
[1649141545734,2.74005184,46601.0,46597.0,0.27836085]
[1649141545885,2.75078184,46601.0,46597.0,0.27836085]
[1649141546082,2.74005184,46601.0,46597.0,0.27836085]
[1649141546767,2.74005184,46601.0,46597.0,0.32836085]
[1649141547059,2.74005184,46601.0,46598.0,0.320934]
[1649141547159,2.74005184,46601.0,46599.0,0.320927]
[1649141547261,2.74005184,46601.0,46600.0,0.01085441]
[1649141547365,2.74005184,46601.0,46600.0,0.02152441]
[1649141547461,2.05394736,46601.0,46600.0,0.02152441]
[1649141547560,1.95844736,46601.0,46600.0,0.02152441]
[1649141547863,1.95844736,46601.0,46600.0,0.05347]
[1649141547864,0.06734736,46601.0,46600.0,0.05347]
[1649141547961,0.06734736,46601.0,46600.0,0.59902115]
[1649141547962,0.00034736,46601.0,46600.0,0.59902115]
[1649141548170,1.17837404,46605.0,46601.0,2.95]
[1649141548263,1.17837404,46605.0,46604.0,0.01085115]
[1649141548359,1.17837404,46605.0,46604.0,0.02151715]
[1649141548460,0.28217591,46621.0,46608.0,0.053632]
[1649141548461,0.31073,46620.0,46608.0,0.053632]
[1649141548560,0.01073,46620.0,46613.0,0.19764947]
[1649141548660,0.28217591,46621.0,46613.0,0.19764947]
[1649141548762,0.320934,46620.0,46613.0,0.19764947]
[1649141548859,0.2,46624.0,46613.0,0.05]
[1649141548960,0.331654,46623.0,46613.0,0.05]
[1649141549162,0.331654,46623.0,46617.0,0.29850691]
[1649141549262,0.331654,46623.0,46617.0,0.60052976]
[1649141549410,0.331654,46623.0,46617.0,0.65052976]
[1649141549411,0.3,46622.0,46617.0,0.65052976]
[1649141549513,0.320934,46620.0,46617.0,0.05]
[1649141549713,0.320934,46620.0,46613.0,0.05363118]
[1649141549961,0.320934,46620.0,46616.0,0.00057763]
[1649141550509,0.05,46620.0,46619.0,0.01085127]
[1649141550611,0.320934,46620.0,46619.0,0.28445367]
[1649141550709,0.85,46619.0,46610.0,0.11178803]
[1649141550809,0.05,46620.0,46616.0,0.28999724]
[1649141550960,0.320934,46624.0,46616.0,0.28999724]
[1649141551059,0.01072,46623.0,46616.0,0.28999724]
[1649141551162,0.320934,46622.0,46616.0,0.28999724]
[1649141551359,0.320934,46621.0,46616.0,0.28999724]
[1649141551562,0.05,46621.0,46617.0,0.21302925]
[1649141551763,0.320934,46620.0,46619.0,0.22217008]
[1649141552214,0.320934,46620.0,46619.0,0.05]
[1649141552317,0.320934,46620.0,46616.0,0.05]
[1649141552417,0.05,46621.0,46616.0,0.05]
[1649141552618,0.41072,46627.0,46615.0,0.00246103]
[1649141552715,0.320934,46626.0,46615.0,0.00246103]
[1649141552820,0.01072,46625.0,46618.0,0.00171071]
[1649141552917,0.420934,46626.0,46618.0,0.00171071]
[1649141552918,0.320934,46624.0,46618.0,0.00171071]
[1649141553116,0.470934,46624.0,46618.0,0.00171071]
[1649141553766,0.15,46624.0,46618.0,0.00171071]
[1649141553867,0.320934,46623.0,46618.0,0.00171071]
[1649141553967,0.15,46624.0,46618.0,0.00171071]
[1649141554068,0.320934,46623.0,46618.0,0.00171071]
[1649141554299,0.58922547,46623.0,46618.0,0.00171071]
[1649141554400,0.320934,46623.0,46618.0,0.00171071]
[1649141554948,0.320934,46623.0,46620.0,0.00074488]
[1649141556801,0.320934,46623.0,46621.0,0.00299971]
[1649141558249,0.720934,46623.0,46621.0,0.00299971]
[1649141558353,0.5,46622.0,46621.0,0.00299971]
[1649141558455,0.00574137,46619.0,46614.0,0.00059621]
[1649141558551,0.320934,46618.0,46614.0,0.00059621]
[1649141558650,0.3,46617.0,46614.0,0.00059621]
[1649141558751,0.320934,46616.0,46614.0,0.00059621]
[1649141558849,0.320934,46616.0,46613.0,0.09055352]
[1649141558850,0.463734,46616.0,46613.0,0.09055352]
[1649141558955,2.95,46615.0,46602.0,0.00238545]
[1649141559051,0.620934,46614.0,46602.0,0.00238545]
[1649141559150,0.3,46614.0,46602.0,0.00238545]
[1649141559249,0.28208666,46610.0,46602.0,0.00238545]
[1649141559349,0.3,46614.0,46602.0,0.15360315]
[1649141559455,3.0428,46615.0,46599.0,0.26182154]
[1649141559456,0.620934,46613.0,46599.0,0.26182154]
[1649141559554,0.3,46613.0,46599.0,0.26182154]
[1649141559652,0.320934,46612.0,46599.0,0.26182154]
[1649141559750,0.3928,46613.0,46599.0,0.26182154]
[1649141559953,0.3928,46613.0,46599.0,0.31182154]
[1649141560052,0.320934,46612.0,46599.0,0.31182154]
[1649141560155,0.420934,46612.0,46599.0,0.05]
[1649141560304,0.0428,46611.0,46597.0,0.0905]
[1649141560411,0.620934,46610.0,46597.0,0.0905]
[1649141560504,0.620934,46610.0,46600.0,0.17528825]
[1649141560505,0.320934,46607.0,46600.0,0.17528825]
[1649141560604,0.620934,46607.0,46600.0,0.17528825]
[1649141560803,0.713734,46607.0,46600.0,1.12995629]
[1649141560907,0.713734,46607.0,46604.0,0.00075921]
[1649141561008,0.413734,46607.0,46604.0,0.00075921]
[1649141561157,0.370934,46607.0,46604.0,0.00075921]
[1649141561255,0.05,46607.0,46604.0,0.00075921]
[1649141561360,0.320934,46610.0,46604.0,0.00075921]
[1649141561606,0.420934,46610.0,46604.0,0.00075921]
[1649141561754,0.420934,46610.0,46608.0,0.23922757]
[1649141561855,0.420934,46610.0,46609.0,0.16970857]
[1649141562157,0.420934,46610.0,46609.0,1.32824567]
[1649141562256,0.420934,46610.0,46609.0,0.16970857]
[1649141563059,0.320934,46610.0,46609.0,0.21970857]
[1649141563462,0.05,46611.0,46609.0,0.21970857]
[1649141563562,0.01073,46618.0,46609.0,0.21970857]
[1649141563660,0.00635539,46619.0,46609.0,0.25409405]
[1649141563661,1.75,46617.0,46609.0,0.25409405]
[1649141563767,0.00635539,46619.0,46609.0,0.25409405]
[1649141564110,0.00574137,46619.0,46609.0,0.25409405]
[1649141564312,0.00574137,46619.0,46612.0,0.28611718]
[1649141564417,0.320934,46618.0,46612.0,0.28611718]
[1649141564512,0.00574137,46619.0,46612.0,0.28611718]
[1649141564713,0.00574137,46619.0,46613.0,0.320934]
[1649141564812,0.00574137,46619.0,46618.0,0.26080106]
[1649141565013,0.00574137,46619.0,46613.0,0.23549832]
[1649141565114,0.00574137,46619.0,46613.0,0.28549832]
[1649141565511,0.00574137,46619.0,46613.0,0.33912932]
[1649141565710,0.00574137,46619.0,46613.0,0.37667336]
[1649141565806,0.320934,46618.0,46613.0,0.37667336]
[1649141566108,0.320934,46618.0,46613.0,0.6379212]
[1649141566308,0.320934,46618.0,46613.0,0.5842902]
[1649141566408,0.320934,46618.0,46613.0,0.39159188]
[1649141566660,0.320934,46617.0,46613.0,0.34879188]
[1649141566759,0.00061407,46618.0,46613.0,0.34879188]
[1649141566859,0.320934,46617.0,46613.0,0.34879188]
[1649141566960,0.00061407,46618.0,46613.0,0.34879188]
[1649141567059,0.320934,46617.0,46613.0,0.34879188]
[1649141567162,0.00061407,46618.0,46613.0,0.34879188]
[1649141567262,0.320934,46617.0,46613.0,0.34879188]
[1649141567358,0.00061407,46618.0,46613.0,0.34879188]
[1649141567460,0.320934,46617.0,46613.0,0.34879188]
[1649141567562,0.00061407,46618.0,46615.0,0.0027084]
[1649141567659,0.320934,46617.0,46615.0,0.0027084]
[1649141567961,0.32154807,46617.0,46615.0,0.0027084]
[1649141568961,0.320934,46617.0,46615.0,0.0027084]
[1649141569272,0.320934,46617.0,46616.0,0.15458855]
[1649141569371,0.320934,46617.0,46616.0,0.20458855]
[1649141569574,0.00061406,46618.0,46616.0,0.20458855]
[1649141569773,0.320934,46617.0,46616.0,0.20458855]
[1649141570178,0.320934,46617.0,46616.0,0.05]
[1649141570275,0.00574137,46619.0,46615.0,0.0027084]
[1649141570377,0.320934,46618.0,46615.0,0.0027084]
[1649141571930,0.370934,46618.0,46615.0,0.0027084]
[1649141572029,0.320934,46616.0,46613.0,0.09110602]
[1649141572329,0.363734,46616.0,46613.0,0.00080602]
[1649141572730,0.417384,46616.0,46613.0,0.00080602]
[1649141573018,0.64934622,46616.0,46613.0,0.00080602]
[1649141573313,2.95,46615.0,46597.0,0.18993129]
[1649141573459,2.95,46615.0,46593.0,0.00238242]
[1649141573460,0.3,46614.0,46593.0,0.00238242]
[1649141573759,0.3,46614.0,46600.0,0.03755551]
[1649141573857,0.3,46614.0,46603.0,0.24333135]
[1649141573858,0.01073,46613.0,46603.0,0.24333135]
[1649141573958,0.3,46614.0,46603.0,0.24333135]
[1649141574060,0.3,46614.0,46603.0,0.58522369]
[1649141574209,0.3,46614.0,46600.0,0.02255551]
[1649141574312,0.374464,46613.0,46600.0,0.02255551]
[1649141574410,0.417387,46613.0,46600.0,0.02255551]
[1649141574511,0.2,46612.0,46600.0,0.02255551]
[1649141574611,0.2,46612.0,46591.0,0.001]
[1649141574612,0.620934,46611.0,46591.0,0.001]
[1649141574813,0.2,46608.0,46591.0,0.001]
[1649141574912,0.620934,46607.0,46591.0,0.001]
[1649141575014,0.713734,46607.0,46591.0,0.001]
[1649141575112,0.3928,46607.0,46601.0,0.00057408]
[1649141575411,0.320934,46606.0,46601.0,0.00057408]
[1649141575559,0.3928,46607.0,46601.0,0.00057408]
[1649141575665,0.320934,46606.0,46601.0,0.00057408]
[1649141575765,0.5,46604.0,46601.0,0.00057408]
[1649141576160,0.55,46604.0,46595.0,0.17801234]
[1649141576261,0.320934,46602.0,46594.0,0.32250404]
[1649141576368,0.3,46603.0,46600.0,0.00057409]
[1649141576462,0.55,46604.0,46600.0,0.00057409]
[1649141576855,0.55,46604.0,46603.0,0.00075312]
[1649141577358,0.870934,46604.0,46603.0,0.00075312]
[1649141577457,0.55,46604.0,46603.0,0.00075312]
[1649141579561,0.870934,46604.0,46603.0,0.00075312]
[1649141579661,0.55,46604.0,46603.0,0.00075312]
[1649141579761,0.870934,46604.0,46603.0,0.00075312]
[1649141579864,0.87064816,46604.0,46603.0,0.00075312]
[1649141580739,0.87064816,46604.0,46603.0,0.00263144]
[1649141580842,1.27064816,46604.0,46603.0,0.00263144]
[1649141580943,1.31344816,46604.0,46603.0,0.00263144]
[1649141582139,1.27064816,46604.0,46603.0,0.00263144]
[1649141582240,0.92064816,46604.0,46603.0,0.00263144]
[1649141582338,0.82064816,46604.0,46603.0,0.00263144]
[1649141582894,0.82064816,46604.0,46603.0,0.30787181]
[1649141582994,0.49971416,46604.0,46603.0,0.30787181]
[1649141583089,0.00057494,46608.0,46603.0,0.36872797]
[1649141583292,0.00057494,46608.0,46603.0,0.35787181]
[1649141583392,0.1834,46610.0,46603.0,0.35787181]
[1649141583498,0.331664,46609.0,46603.0,0.05263144]
[1649141583589,0.331664,46609.0,46603.0,0.05320646]
[1649141583694,0.331664,46609.0,46603.0,0.00320646]
[1649141583792,0.320934,46607.0,46603.0,0.00320646]
[1649141584575,0.30676513,46606.0,46603.0,0.00263144]
[1649141584679,0.320934,46605.0,46603.0,0.00263144]
[1649141584776,0.32280258,46602.0,46601.0,0.00259561]
[1649141586780,0.32280258,46602.0,46600.0,0.00075153]
[1649141588710,0.32280258,46602.0,46601.0,0.00213967]
[1649141588911,0.00186858,46602.0,46601.0,0.00213967]
[1649141589415,0.00186858,46602.0,46601.0,0.29626281]
[1649141589615,0.00186858,46602.0,46601.0,0.34626281]
[1649141589916,0.32280258,46602.0,46601.0,0.34626281]
[1649141590015,0.32280258,46602.0,46601.0,0.05213967]
[1649141590114,0.37280258,46602.0,46601.0,0.05213967]
[1649141590216,0.37280258,46602.0,46601.0,0.00213967]
[1649141590615,0.37280258,46602.0,46600.0,0.03969315]
[1649141590766,0.37280258,46602.0,46600.0,0.00213967]
[1649141590767,0.57280258,46602.0,46600.0,0.00213967]
[1649141591172,0.320934,46601.0,46600.0,0.00213967]
[1649141591268,0.00186858,46602.0,46600.0,0.00213967]
[1649141591370,0.00186858,46602.0,46600.0,0.03969322]
[1649141591766,0.320934,46601.0,46600.0,0.03969322]
[1649141591866,0.00186858,46602.0,46600.0,0.03969322]
[1649141592067,0.320934,46601.0,46600.0,0.03969322]
[1649141592368,0.00186858,46602.0,46600.0,0.03969322]
[1649141592474,0.00186858,46602.0,46601.0,0.053447]
[1649141592720,0.00186858,46602.0,46601.0,0.11644108]
[1649141593021,0.00186858,46602.0,46601.0,0.38692561]
[1649141593370,0.00186858,46602.0,46601.0,0.58103079]
[1649141593470,0.00186858,46602.0,46601.0,0.9107958]
[1649141593571,0.00186858,46602.0,46601.0,0.71669062]
[1649141593675,0.00186858,46602.0,46601.0,0.3226242]
[1649141594774,0.00186858,46602.0,46601.0,0.63139435]
[1649141594870,0.00186858,46602.0,46601.0,0.63306183]
[1649141594970,0.00186858,46602.0,46601.0,0.83497869]
[1649141595272,0.00186858,46602.0,46601.0,0.52620854]
[1649141595604,0.00186858,46602.0,46601.0,0.32429168]
[1649141596210,0.00186858,46602.0,46601.0,0.7021673]
[1649141596606,0.00186858,46602.0,46601.0,0.32429168]
[1649141597308,0.00186858,46602.0,46601.0,0.49761476]
[1649141597758,0.00186858,46602.0,46601.0,0.22713023]
[1649141597859,0.00186858,46602.0,46601.0,0.05380715]
[1649141597960,0.00186858,46602.0,46601.0,0.06445415]
[1649141598061,0.00186858,46602.0,46601.0,0.11809715]
[1649141598265,0.00186858,46602.0,46601.0,0.16089715]
[1649141598763,0.00186858,46602.0,46601.0,0.39851094]
[1649141598961,0.00186858,46602.0,46601.0,0.98883824]
[1649141599062,0.00186858,46602.0,46601.0,0.27167096]
[1649141599163,0.00186858,46602.0,46601.0,0.27000348]
[1649141600062,0.00186858,46602.0,46601.0,0.59093748]
[1649141600162,0.00186858,46602.0,46601.0,0.27000348]
[1649141600313,0.00186858,46602.0,46601.0,0.49266259]
[1649141600413,0.00186858,46602.0,46601.0,0.53546259]
[1649141601066,0.00186858,46602.0,46601.0,0.85639659]
[1649141601212,0.00186858,46602.0,46601.0,0.49266259]
[1649141601317,0.00186858,46602.0,46601.0,0.94527071]
[1649141601464,0.00186858,46602.0,46601.0,0.98807071]
[1649141602217,0.00186858,46602.0,46601.0,0.57875295]
[1649141602316,0.00186858,46602.0,46601.0,0.53595295]
[1649141602416,0.00186858,46602.0,46601.0,0.49266259]
[1649141603307,0.00186858,46602.0,46601.0,0.22222111]
[1649141603407,0.00186858,46602.0,46601.0,0.29405695]
[1649141603507,0.00186858,46602.0,46601.0,0.09329036]
[1649141603707,0.00186858,46602.0,46601.0,0.09564766]
[1649141604009,0.00186858,46602.0,46601.0,0.0523573]
[1649141604208,0.32280258,46602.0,46601.0,0.0523573]
[1649141604309,0.00186858,46602.0,46601.0,0.0523573]
[1649141604519,0.32280258,46602.0,46601.0,0.0023573]
[1649141604662,0.62280258,46602.0,46601.0,0.0023573]
[1649141605263,0.82280258,46602.0,46601.0,0.0023573]
[1649141605366,0.82280258,46602.0,46601.0,0.00021715]
[1649141605367,1.04844381,46602.0,46601.0,0.00021715]
[1649141605764,0.57280258,46602.0,46601.0,0.00021715]
[1649141606017,0.57280258,46602.0,46600.0,0.00299045]
[1649141606420,0.64303258,46602.0,46600.0,0.00299045]
[1649141607220,0.94303258,46602.0,46600.0,0.00299045]
[1649141607322,1.11867381,46602.0,46600.0,0.00299045]
[1649141607520,0.3,46601.0,46600.0,0.00299045]
[1649141607625,0.79657523,46601.0,46600.0,0.00299045]
[1649141607872,0.620934,46601.0,46600.0,0.00299045]
[1649141607972,0.620934,46601.0,46599.0,0.00107464]
[1649141608071,0.320934,46600.0,46599.0,0.00107464]
[1649141608271,0.370934,46600.0,46599.0,0.00107464]
[1649141608672,0.370934,46600.0,46599.0,0.00073568]
[1649141609121,0.320934,46600.0,46599.0,0.00073568]
[1649141609325,0.620934,46600.0,46599.0,0.00073568]
[1649141609425,0.663734,46600.0,46599.0,0.00073568]
[1649141609624,1.013734,46600.0,46599.0,0.00073568]
[1649141610427,1.23328553,46600.0,46599.0,0.00073568]
[1649141610576,1.15512352,46600.0,46599.0,0.00073568]
[1649141610677,1.1659876,46600.0,46599.0,0.00073568]
[1649141610876,1.14017944,46600.0,46599.0,0.00073568]
[1649141611223,0.8767176,46600.0,46599.0,0.00073568]
[1649141611475,1.1767176,46600.0,46599.0,0.00073568]
[1649141611576,1.17671597,46600.0,46599.0,0.00073568]
[1649141611676,1.17671597,46600.0,46599.0,0.0025574]
[1649141612877,1.16857989,46600.0,46599.0,0.0025574]
[1649141615467,1.43169568,46600.0,46599.0,0.0025574]
[1649141615566,1.16857989,46600.0,46599.0,0.0025574]
[1649141615667,1.43172275,46600.0,46599.0,0.0025574]
[1649141616469,1.16857989,46600.0,46599.0,0.0025574]
[1649141618117,0.61857989,46600.0,46599.0,0.0025574]
[1649141618312,0.83786426,46600.0,46599.0,0.0025574]
[1649141618665,0.69233789,46600.0,46599.0,0.0025574]
[1649141618765,0.46232352,46600.0,46599.0,0.0025574]
[1649141618963,0.320934,46600.0,46599.0,0.0025574]
[1649141619768,0.65182482,46601.0,46599.0,0.0025574]
[1649141619975,0.65182482,46601.0,46600.0,0.01085534]
[1649141620065,0.65182482,46601.0,46600.0,0.45872258]
[1649141620175,0.65182482,46601.0,46600.0,0.08609036]
[1649141620267,0.65182482,46601.0,46600.0,0.13609036]
[1649141620715,0.65182482,46601.0,46600.0,0.40562251]
[1649141620814,0.65182482,46601.0,46600.0,0.45927051]
[1649141621873,0.65182482,46601.0,46600.0,0.42052393]